lending/lending_fUSD_20250706
["ID","MTS","AMOUNT","RATE_DAILY","PERIOD"]
[370019117,1751836588177,460.0,0.00030136,120]
[370019118,1751836588207,8424.88,0.00030136,120]
[370019119,1751836589073,588.33,0.00030136,120]
[370019120,1751836589926,460.0,0.00030136,120]
[370019121,1751836590551,460.0,0.00030136,120]
[370019122,1751836593448,555.49,0.00030136,120]
[370019123,1751836594449,495.23,0.00030136,120]
[370019124,1751836594552,970.03,0.00030136,120]
[370019125,1751836594966,460.0,0.00030136,120]
[370019126,1751836595323,460.0,0.00030136,120]
[370019127,1751836597238,728.0,0.00030136,120]
[370019128,1751836597322,460.0,0.00030136,120]
[370019129,1751836597586,658.02,0.00030136,120]
[370019130,1751836598029,460.0,0.00030136,120]
[370019131,1751836598638,1198.18,0.00030136,120]
[370019132,1751836599059,460.0,0.00030136,120]
[370019133,1751836599475,1540.19,0.00030136,120]
[370019134,1751836600302,712.61,0.00030136,120]
[370019135,1751836600335,460.0,0.00030136,120]
[370019136,1751836601260,460.0,0.00030136,120]
[370019137,1751836602639,460.0,0.00030136,120]
[370019138,1751836604826,1770.33,0.00030136,120]
[370019139,1751836605020,460.0,0.00030136,120]
[370019140,1751836605279,460.0,0.00030136,120]
[370019141,1751836605381,460.0,0.00030136,120]
[370019142,1751836605445,583.69,0.00030136,120]
[370019143,1751836608178,2069.87,0.00030136,120]
[370019144,1751836608536,460.0,0.00030136,120]
[370019145,1751836611026,859.08,0.00030136,120]
[370019146,1751836611818,1208.77,0.00030136,120]
[370019147,1751836612407,614.78,0.00030136,120]
[370019148,1751836614212,503.54,0.00030136,120]
[370019149,1751836614471,4716.84,0.00030136,120]
[370019150,1751836615864,1118.24,0.00030136,120]
[370019151,1751836616538,2820.3,0.00030136,120]
[370019152,1751836616984,629.55,0.00030136,120]
[370019153,1751836619456,2199.77,0.00030136,120]
[370019154,1751836619492,460.0,0.00030136,120]
[370019155,1751836619530,460.0,0.00030136,120]
[370019156,1751836619805,471.66,0.00030136,120]
[370019157,1751836620147,691.51,0.00030136,120]
[370019158,1751836621290,460.0,0.00030136,120]
[370019159,1751836621847,460.0,0.00030136,120]
[370019160,1751836624172,460.0,0.00030136,120]
[370019161,1751836624206,556.72,0.00030136,120]
[370019162,1751836626600,774.21,0.00030136,120]
[370019163,1751836626728,1099.64,0.00030136,120]
[370019164,1751836627523,1000.0,0.00030136,120]
[370019165,1751836628814,460.0,0.00030136,120]
[370019166,1751836628849,605.4,0.00030136,120]
[370019167,1751836630870,460.0,0.00030136,120]
[370019168,1751836631014,1426.94,0.00030136,120]
[370019169,1751836631498,471.39,0.00030136,120]
[370019170,1751836632650,537.65,0.00030136,120]
[370019171,1751836632681,460.0,0.00030136,120]
[370019172,1751836634306,460.0,0.00030136,120]
[370019173,1751836634495,400.72226426,0.00030136,120]
[370019174,1751836635022,552.07,0.00030136,120]
[370019175,1751836636134,629.77,0.00030136,120]
[370019176,1751836637400,427.63319619,0.00030136,120]
[370019177,1751836639534,460.0,0.00030136,120]
[370019178,1751836640121,2020.81,0.00030136,120]
[370019179,1751836641068,460.0,0.00030136,120]
[370019180,1751836641405,651.53,0.00030136,120]
[370019181,1751836641667,2316.92,0.00030136,120]
[370019182,1751836641769,460.0,0.00030136,120]
[370019183,1751836642426,1133.55,0.00030136,120]
[370019184,1751836642887,553.43,0.00030136,120]
[370019185,1751836643747,460.0,0.00030136,120]
[370019186,1751836644093,657.31,0.00030136,120]
[370019187,1751836647401,460.0,0.00030136,120]
[370019188,1751836649173,460.0,0.00030136,120]
[370019189,1751836650598,834.08,0.00030136,120]
[370019190,1751836650698,460.0,0.00030136,120]
[370019191,1751836651854,460.0,0.00030136,120]
[370019192,1751836651941,769.89,0.00030136,120]
[370019193,1751836653323,1134.51,0.00030136,120]
[370019194,1751836653423,734.27,0.00030136,120]
[370019195,1751836653686,485.26,0.00030136,120]
[370019196,1751836653728,2937.28,0.00030136,120]
[370019197,1751836655143,726.69,0.00030136,120]
[370019198,1751836655800,984.76,0.00030136,120]
[370019199,1751836656902,460.0,0.00030136,120]
[370019200,1751836657319,867.02,0.00030136,120]
[370019201,1751836660352,460.0,0.00030136,120]
[370019202,1751836662211,883.07,0.00030136,120]
[370019203,1751836662257,693.45,0.00030136,120]
[370019204,1751836663528,782.88,0.00030136,120]
[370019205,1751836664571,592.51,0.00030136,120]
[370019206,1751836666612,477.44,0.00030136,120]
[370019207,1751836670289,484.73,0.00030136,120]
[370019208,1751836670794,531.46,0.00030136,120]
[370019209,1751836671243,576.48,0.00030136,120]
[370019210,1751836671383,460.0,0.00030136,120]
[370019211,1751836673140,460.0,0.00030136,120]
[370019212,1751836673922,7145.92,0.00030136,120]
[370019213,1751836675383,460.0,0.00030136,120]
[370019214,1751836676160,567.23,0.00030136,120]
[370019215,1751836676441,1725.32,0.00030136,120]
[370019216,1751836677351,2143.57,0.00030136,120]
[370019217,1751836677597,662.58,0.00030136,120]
[370019218,1751836679384,460.0,0.00030136,120]
[370019219,1751836682539,746.11,0.00030136,120]
[370019220,1751836683330,460.0,0.00030136,120]
[370019221,1751836683410,472.28,0.00030136,120]
[370019222,1751836683480,460.0,0.00030136,120]
[370019223,1751836684745,460.0,0.00030136,120]
[370019224,1751836684812,905.72,0.00030136,120]
[370019225,1751836685770,626.04,0.00030136,120]
[370019226,1751836686316,46745.43,0.00030136,120]
[370019227,1751836687439,575.22,0.00030136,120]
[370019228,1751836688373,774.65,0.00030136,120]
[370019229,1751836689979,960.09,0.00030136,120]
[370019230,1751836690278,460.0,0.00030136,120]
[370019231,1751836691427,701.85,0.00030136,120]
[370019232,1751836692736,284.42663841,0.00030136,120]
[370019233,1751836693010,528.47,0.00030136,120]
[370019234,1751836693071,460.0,0.00030136,120]
[370019235,1751836696024,460.0,0.00030136,120]
[370019236,1751836696755,460.0,0.00030136,120]
[370019237,1751836696797,552.41,0.00030136,120]
[370019238,1751836698009,571.77,0.00030136,120]
[370019239,1751836698224,567.47,0.00030136,120]
[370019240,1751836698327,460.0,0.00030136,120]
[370019241,1751836698680,460.0,0.00030136,120]
[370019243,1751836704521,733.67,0.00030136,120]
[370019244,1751836705169,1269.14,0.00030136,120]
[370019245,1751836707131,684.82,0.00030136,120]
[370019246,1751836707171,763.96,0.00030136,120]
[370019247,1751836708670,1204.98,0.00030136,120]
[370019248,1751836710304,656.71,0.00030136,120]
[370019249,1751836711477,2650.76,0.00030136,120]
[370019250,1751836712172,460.0,0.00030136,120]
[370019251,1751836712745,626.7,0.00030136,120]
[370019252,1751836715099,460.0,0.00030136,120]
[370019253,1751836715987,460.0,0.00030136,120]
[370019254,1751836716416,598.88,0.00030136,120]
[370019255,1751836716666,625.22,0.00030136,120]
[370019256,1751836719739,460.0,0.00030136,120]
[370019257,1751836719782,460.0,0.00030136,120]
[370019258,1751836720008,1251.89,0.00030136,120]
[370019259,1751836720677,8495.5,0.00030136,120]
[370019260,1751836721921,1164.18,0.00030136,120]
[370019261,1751836723593,460.0,0.00030136,120]
[370019262,1751836724360,2454.3,0.00030136,120]
[370019263,1751836726112,1502.99,0.00030136,120]
[370019264,1751836729615,460.0,0.00030136,120]
[370019265,1751836729654,973.03,0.00030136,120]
[370019266,1751836730619,460.0,0.00030136,120]
[370019267,1751836732949,460.0,0.00030136,120]
[370019268,1751836735245,626.9,0.00030136,120]
[370019269,1751836735484,1134.65,0.00030136,120]
[370019270,1751836736132,523.91,0.00030136,120]
[370019271,1751836736349,625.65,0.00030136,120]
[370019272,1751836738048,573.5,0.00030136,120]
[370019273,1751836738130,1607.17,0.00030136,120]
[370019274,1751836740271,460.0,0.00030136,120]
[370019275,1751836740661,722.23,0.00030136,120]
[370019276,1751836743914,817.39,0.00030136,120]
[370019277,1751836744968,597.73099855,0.00030136,120]
[370019278,1751836745393,460.0,0.00030136,120]
[370019279,1751836746848,943.33,0.00030136,120]
[370019280,1751836749260,1138.55,0.00030136,120]
[370019281,1751836752829,1724.3,0.00030136,120]
[370019282,1751836753260,634.75,0.00030136,120]
[370019283,1751836755844,2475.05,0.00030136,120]
[370019284,1751836757185,1055.74,0.00030136,120]
[370019285,1751836758350,982.41,0.00030136,120]
[370019286,1751836758677,542.04,0.00030136,120]
[370019287,1751836760672,460.0,0.00030136,120]
[370019288,1751836760817,460.0,0.00030136,120]
[370019289,1751836763081,465.35,0.00030136,120]
[370019290,1751836763530,460.0,0.00030136,120]
[370019291,1751836764209,1360.34,0.00030136,120]
[370019292,1751836765449,460.0,0.00030136,120]
[370019293,1751836766971,460.0,0.00030136,120]
[370019294,1751836768738,2201.87,0.00030136,120]
[370019295,1751836769660,486.55,0.00030136,120]
[370019296,1751836770613,1089.69,0.00030136,120]
[370019297,1751836772329,746.12,0.00030136,120]
[370019298,1751836773108,460.0,0.00030136,120]
[370019299,1751836775201,614.23,0.00030136,120]
[370019300,1751836776340,460.0,0.00030136,120]
[370019301,1751836776384,695.62,0.00030136,120]
[370019302,1751836778533,460.0,0.00030136,120]
[370019303,1751836778781,234.47039572,0.00030136,120]
[370019304,1751836779194,1046.51,0.00030136,120]
[370019305,1751836779661,661.3,0.00030136,120]
[370019306,1751836779891,1341.99,0.00030136,120]
[370019307,1751836783363,460.0,0.00030136,120]
[370019308,1751836784298,8073.84,0.00030136,120]
[370019309,1751836785136,727.3,0.00030136,120]
[370019310,1751836786239,460.0,0.00030136,120]
[370019311,1751836786388,1017.88,0.00030136,120]
[370019312,1751836786488,3860.04,0.00030136,120]
[370019313,1751836788607,460.0,0.00030136,120]
[370019314,1751836789584,465.24360897,0.00030136,120]
[370019315,1751836789716,1844.36,0.00030136,120]
[370019316,1751836790505,460.0,0.00030136,120]
[370019317,1751836790703,751.03,0.00030136,120]
[370019318,1751836792737,460.0,0.00030136,120]
[370019319,1751836793093,577.53,0.00030136,120]
[370019320,1751836794426,1894.58,0.00030136,120]
[370019321,1751836795112,641.08,0.00030136,120]
[370019322,1751836796223,460.0,0.00030136,120]
[370019323,1751836797319,1468.92,0.00030136,120]
[370019324,1751836799878,682.92,0.00030136,120]
[370019325,1751836801022,460.0,0.00030136,120]
[370019326,1751836803840,614.94,0.00030136,120]
[370019327,1751836805503,539.87,0.00030136,120]
[370019328,1751836805553,460.0,0.00030136,120]
[370019329,1751836806114,502.92,0.00030136,120]
[370019330,1751836806547,460.0,0.00030136,120]
[370019331,1751836808722,738.75,0.00030136,120]
[370019332,1751836809613,460.0,0.00030136,120]
[370019333,1751836809917,460.0,0.00030136,120]
[370019334,1751836810288,526.97,0.00030136,120]
[370019335,1751836813263,642.72,0.00030136,120]
[370019336,1751836813449,1216.8,0.00030136,120]
[370019337,1751836813655,694.79,0.00030136,120]
[370019338,1751836814681,597.47,0.00030136,120]
[370019339,1751836815801,1071.65,0.00030136,120]
[370019340,1751836816630,460.0,0.00030136,120]
[370019342,1751836817868,460.0,0.00030136,120]
[370019343,1751836819125,738.33,0.00030136,120]
[370019344,1751836819254,460.0,0.00030136,120]
[370019345,1751836820483,509.01,0.00030136,120]
[370019346,1751836821316,1165.52,0.00030136,120]
[370019347,1751836822425,460.0,0.00030136,120]
[370019348,1751836823246,619.18,0.00030136,120]
[370019349,1751836823735,1053.83,0.00030136,120]
[370019350,1751836824097,735.61,0.00030136,120]
[370019351,1751836824138,460.0,0.00030136,120]
[370019352,1751836824273,460.0,0.00030136,120]
[370019353,1751836825059,460.0,0.00030136,120]
[370019354,1751836825324,460.0,0.00030136,120]
[370019355,1751836825390,460.0,0.00030136,120]
[370019356,1751836826038,994.87,0.00030136,120]
[370019357,1751836828389,731.83,0.00030136,120]
[370019358,1751836828430,1094.66,0.00030136,120]
[370019359,1751836829434,752.06,0.00030136,120]
[370019360,1751836830234,662.7,0.00030136,120]
[370019361,1751836831303,460.0,0.00030136,120]
[370019362,1751836831929,760.01,0.00030136,120]
[370019364,1751836834801,460.0,0.00030136,120]
[370019365,1751836835345,460.0,0.00030136,120]
[370019366,1751836835392,460.60860901,0.00030136,120]
[370019367,1751836835456,1158.4,0.00030136,120]
[370019368,1751836836414,460.0,0.00030136,120]
[370019369,1751836836748,460.0,0.00030136,120]
[370019370,1751836837482,2221.8,0.00030136,120]
[370019371,1751836837684,1983.63,0.00030136,120]
[370019372,1751836837897,460.0,0.00030136,120]
[370019373,1751836838030,576.04,0.00030136,120]
[370019374,1751836838681,460.0,0.00030136,120]
[370019375,1751836838761,460.0,0.00030136,120]
[370019376,1751836838892,591.84,0.00030136,120]
[370019377,1751836839556,580.17,0.00030136,120]
[370019378,1751836839930,460.0,0.00030136,120]
[370019379,1751836840545,505.73,0.00030136,120]
[370019380,1751836841596,460.0,0.00030136,120]
[370019381,1751836842525,433.96,0.00030136,120]
[370019382,1751836842723,460.0,0.00030136,120]
[370019383,1751836843896,632.22,0.00030136,120]
[370019384,1751836845532,666.6,0.00030136,120]
[370019385,1751836845632,1218.71,0.00030136,120]
[370019386,1751836846546,460.0,0.00030136,120]
[370019387,1751836846675,460.0,0.00030136,120]
[370019388,1751836849047,489.26,0.00030136,120]
[370019389,1751836849094,563.82,0.00030136,120]
[370019390,1751836850332,532.34,0.00030136,120]
[370019391,1751836850748,2702.78,0.00030136,120]
[370019392,1751836851447,460.0,0.00030136,120]
[370019393,1751836851695,624.39,0.00030136,120]
[370019394,1751836852561,696.41,0.00030136,120]
[370019395,1751836853216,460.0,0.00030136,120]
[370019396,1751836854728,1661.53,0.00030136,120]
[370019397,1751836855175,1364.42,0.00030136,120]
[370019398,1751836855741,460.0,0.00030136,120]
[370019399,1751836857556,544.12,0.00030136,120]
[370019400,1751836860219,515.24,0.00030136,120]
[370019401,1751836860984,750.26,0.00030136,120]
[370019402,1751836861701,1000.0,0.00030136,120]
[370019404,1751836863486,460.0,0.00030136,120]
[370019405,1751836863529,631.55,0.00030136,120]
[370019406,1751836863793,737.81,0.00030136,120]
[370019407,1751836864200,1476.01,0.00030136,120]
[370019408,1751836865433,697.66,0.00030136,120]
[370019409,1751836865482,460.0,0.00030136,120]
[370019410,1751836865986,938.36,0.00030136,120]
[370019411,1751836866042,460.0,0.00030136,120]
[370019412,1751836868227,460.0,0.00030136,120]
[370019413,1751836868470,630.6,0.00030136,120]
[370019414,1751836869571,552.46,0.00030136,120]
[370019415,1751836869800,603.53,0.00030136,120]
[370019416,1751836870843,629.92,0.00030136,120]
[370019417,1751836871645,460.0,0.00030136,120]
[370019418,1751836871793,460.0,0.00030136,120]
[370019419,1751836875049,533.52,0.00030136,120]
[370019420,1751836875140,664.56,0.00030136,120]
[370019421,1751836876348,463.54,0.00030136,120]
[370019422,1751836878277,460.0,0.00030136,120]
[370019423,1751836878387,1907.2,0.00030136,120]
[370019424,1751836878883,479.46,0.00030136,120]
[370019425,1751836878966,547.94,0.00030136,120]
[370019426,1751836879787,559.37,0.00030136,120]
[370019427,1751836880341,715.02,0.00030136,120]
[370019428,1751836882508,799.33,0.00030136,120]
[370019429,1751836883841,464.54,0.00030136,120]
[370019430,1751836886026,465.04,0.00030136,120]
[370019431,1751836886074,4520.31,0.00030136,120]
[370019432,1751836886118,1469.78,0.00030136,120]
[370019433,1751836886343,460.0,0.00030136,120]
[370019434,1751836886965,568.43,0.00030136,120]
[370019435,1751836887284,460.0,0.00030136,120]
[370019436,1751836888089,620.39,0.00030136,120]
[370019437,1751836888216,2220.38,0.00030136,120]
[370019438,1751836890789,460.0,0.00030136,120]
[370019439,1751836891359,460.0,0.00030136,120]
[370019440,1751836891730,460.0,0.00030136,120]
[370019441,1751836892731,543.83,0.00030136,120]
[370019442,1751836892966,460.0,0.00030136,120]
[370019443,1751836893293,1936.61,0.00030136,120]
[370019444,1751836895345,1672.97,0.00030136,120]
[370019445,1751836896328,951.29,0.00030136,120]
[370019446,1751836896609,460.0,0.00030136,120]
[370019447,1751836896651,460.0,0.00030136,120]
[370019448,1751836898083,460.0,0.00030136,120]
[370019449,1751836898508,943.73,0.00030136,120]
[370019450,1751836899509,460.0,0.00030136,120]
[370019451,1751836900791,490.39,0.00030136,120]
[370019452,1751836901395,460.0,0.00030136,120]
[370019453,1751836902890,741.96,0.00030136,120]
[370019454,1751836903173,460.0,0.00030136,120]
[370019455,1751836903694,1148.25,0.00030136,120]
[370019456,1751836904124,6848.18,0.00030136,120]
[370019457,1751836904298,558.46,0.00030136,120]
[370019458,1751836905030,460.0,0.00030136,120]
[370019459,1751836905127,460.0,0.00030136,120]
[370019460,1751836905308,2814.89,0.00030136,120]
[370019461,1751836905896,460.0,0.00030136,120]
[370019462,1751836907189,460.0,0.00030136,120]
[370019463,1751836909079,599.96,0.00030136,120]
[370019464,1751836910016,473.18,0.00030136,120]
[370019465,1751836911472,1086.31,0.00030136,120]
[370019466,1751836913143,846.28,0.00030136,120]
[370019467,1751836914106,1154.77,0.00030136,120]
[370019468,1751836914653,905.47,0.00030136,120]
[370019469,1751836915196,460.0,0.00030136,120]
[370019470,1751836915763,460.0,0.00030136,120]
[370019471,1751836916915,823.29,0.00030136,120]
[370019472,1751836916977,460.0,0.00030136,120]
[370019473,1751836917091,703.68,0.00030136,120]
[370019474,1751836917729,742.37,0.00030136,120]
[370019475,1751836921319,460.0,0.00030136,120]
[370019476,1751836922116,460.0,0.00030136,120]
[370019477,1751836922859,599.17,0.00030136,120]
[370019478,1751836923720,460.0,0.00030136,120]
[370019479,1751836925329,469.44457304,0.00030136,120]
[370019480,1751836925467,460.0,0.00030136,120]
[370019481,1751836926523,542.46,0.00030136,120]
[370019482,1751836926812,460.0,0.00030136,120]
[370019483,1751836926863,460.0,0.00030136,120]
[370019484,1751836927596,547.94,0.00030136,120]
[370019485,1751836927643,460.0,0.00030136,120]
[370019486,1751836928237,739.54,0.00030136,120]
[370019487,1751836929387,460.0,0.00030136,120]
[370019488,1751836930149,1653.43,0.00030136,120]
[370019489,1751836931634,942.68,0.00030136,120]
[370019490,1751836932160,2352.03,0.00030136,120]
[370019491,1751836932940,586.18,0.00030136,120]
[370019492,1751836935323,677.55,0.00030136,120]
[370019493,1751836935574,994.03,0.00030136,120]
[370019494,1751836936917,460.0,0.00030136,120]
[370019495,1751836937287,576.28,0.00030136,120]
[370019496,1751836937897,1216.26,0.00030136,120]
[370019497,1751836938626,460.0,0.00030136,120]
[370019498,1751836939685,2054.26,0.00030136,120]
[370019499,1751836939729,460.0,0.00030136,120]
[370019500,1751836941374,867.98,0.00030136,120]
[370019501,1751836941722,508.7,0.00030136,120]
[370019502,1751836942739,732.13,0.00030136,120]
[370019503,1751836943145,460.0,0.00030136,120]
[370019504,1751836943356,460.0,0.00030136,120]
[370019505,1751836945417,702.93,0.00030136,120]
[370019506,1751836946246,460.0,0.00030136,120]
[370019507,1751836947725,460.0,0.00030136,120]
[370019508,1751836949242,44797.71,0.00030136,120]
[370019509,1751836949384,573.93,0.00030136,120]
[370019510,1751836949787,506.45,0.00030136,120]
[370019511,1751836950532,980.3,0.00030136,120]
[370019512,1751836950638,460.0,0.00030136,120]
[370019513,1751836951562,1281.02,0.00030136,120]
[370019514,1751836955661,460.0,0.00030136,120]
[370019515,1751836956634,460.0,0.00030136,120]
[370019516,1751836957453,460.0,0.00030136,120]
[370019517,1751836957904,460.0,0.00030136,120]
[370019518,1751836958706,460.0,0.00030136,120]
[370019519,1751836959145,460.0,0.00030136,120]
[370019520,1751836961356,1087.24,0.00030136,120]
[370019521,1751836961519,522.06,0.00030136,120]
[370019522,1751836961812,562.09,0.00030136,120]
[370019523,1751836962157,656.29,0.00030136,120]
[370019524,1751836962217,1440.36,0.00030136,120]
[370019525,1751836963017,460.0,0.00030136,120]
[370019526,1751836963517,672.61,0.00030136,120]
[370019527,1751836964386,2330.15,0.00030136,120]
[370019528,1751836966313,491.16,0.00030136,120]
[370019529,1751836966662,460.0,0.00030136,120]
[370019530,1751836968164,932.49,0.00030136,120]
[370019531,1751836969606,460.0,0.00030136,120]
[370019532,1751836972495,783.33,0.00030136,120]
[370019533,1751836972626,524.28,0.00030136,120]
[370019534,1751836973394,496.20726733,0.00030136,120]
[370019535,1751836974492,599.58,0.00030136,120]
[370019536,1751836974912,460.0,0.00030136,120]
[370019537,1751836975012,460.0,0.00030136,120]
[370019538,1751836976260,619.2,0.00030136,120]
[370019539,1751836977840,666.63,0.00030136,120]
[370019540,1751836977899,692.14,0.00030136,120]
[370019541,1751836978010,460.0,0.00030136,120]
[370019542,1751836978968,460.0,0.00030136,120]
[370019543,1751836980030,941.48,0.00030136,120]
[370019544,1751836980597,1115.67,0.00030136,120]
[370019545,1751836983793,460.0,0.00030136,120]
[370019546,1751836983900,596.53,0.00030136,120]
[370019547,1751836984141,738.82,0.00030136,120]
[370019548,1751836985959,460.0,0.00030136,120]
[370019549,1751836987012,460.0,0.00030136,120]
[370019550,1751836987459,1199.73,0.00030136,120]
[370019551,1751836987660,634.98,0.00030136,120]
[370019552,1751836987766,1091.11,0.00030136,120]
[370019553,1751836988543,3699.2,0.00030136,120]
[370019554,1751836988889,600.78,0.00030136,120]
[370019555,1751836991207,917.92,0.00030136,120]
[370019556,1751836992255,460.0,0.00030136,120]
[370019557,1751836993198,474.08,0.00030136,120]
[370019558,1751836994565,460.0,0.00030136,120]
[370019559,1751836995095,460.0,0.00030136,120]
[370019560,1751836995662,2371.92,0.00030136,120]
[370019561,1751836997305,460.0,0.00030136,120]
[370019562,1751836997755,460.0,0.00030136,120]
[370019563,1751836997800,551.25,0.00030136,120]
[370019564,1751836998542,460.0,0.00030136,120]
[370019565,1751836999646,1011.75,0.00030136,120]
[370019566,1751836999741,715.03,0.00030136,120]
[370019567,1751837000738,460.0,0.00030136,120]
[370019568,1751837001576,460.0,0.00030136,120]
[370019569,1751837004661,460.0,0.00030136,120]
[370019570,1751837004719,1652.46,0.00030136,120]
[370019571,1751837005130,460.0,0.00030136,120]
[370019572,1751837005238,460.0,0.00030136,120]
[370019573,1751837005444,1087.37,0.00030136,120]
[370019574,1751837006154,532.04,0.00030136,120]
[370019575,1751837007130,460.0,0.00030136,120]
[370019576,1751837011197,460.0,0.00030136,120]
[370019577,1751837011304,646.21,0.00030136,120]
[370019578,1751837011712,460.0,0.00030136,120]
[370019579,1751837014227,460.0,0.00030136,120]
[370019580,1751837015631,703.11,0.00030136,120]
[370019581,1751837015677,572.57,0.00030136,120]
[370019583,1751837020511,7737.43,0.00030136,120]
[370019584,1751837020733,460.0,0.00030136,120]
[370019585,1751837021584,719.73,0.00030136,120]
[370019586,1751837023369,460.0,0.00030136,120]
[370019587,1751837023782,1286.07,0.00030136,120]
[370019588,1751837024105,460.0,0.00030136,120]
[370019589,1751837025671,1044.29,0.00030136,120]
[370019590,1751837025823,600.59,0.00030136,120]
[370019591,1751837026219,657.71,0.00030136,120]
[370019592,1751837027806,565.35,0.00030136,120]
[370019593,1751837027919,720.72,0.00030136,120]
[370019594,1751837028646,654.47,0.00030136,120]
[370019595,1751837029334,460.0,0.00030136,120]
[370019596,1751837033513,460.0,0.00030136,120]
[370019597,1751837034679,8141.52,0.00030136,120]
[370019598,1751837035367,729.87,0.00030136,120]
[370019599,1751837036290,1002.91,0.00030136,120]
[370019600,1751837037794,460.0,0.00030136,120]
[370019601,1751837037838,484.66,0.00030136,120]
[370019602,1751837038585,460.0,0.00030136,120]
[370019603,1751837039712,460.0,0.00030136,120]
[370019604,1751837041082,2110.12,0.00030136,120]
[370019605,1751837041642,1027.0,0.00030136,120]
[370019606,1751837041759,510.57,0.00030136,120]
[370019607,1751837041989,1407.72,0.00030136,120]
[370019608,1751837043991,460.0,0.00030136,120]
[370019609,1751837044349,1166.1,0.00030136,120]
[370019610,1751837044609,460.0,0.00030136,120]
[370019611,1751837045654,460.0,0.00030136,120]
[370019612,1751837046782,518.63,0.00030136,120]
[370019613,1751837046850,1767.51,0.00030136,120]
[370019614,1751837046926,460.0,0.00030136,120]
[370019615,1751837047845,460.0,0.00030136,120]
[370019616,1751837048175,510.16,0.00030136,120]
[370019617,1751837048490,460.0,0.00030136,120]
[370019618,1751837049407,460.0,0.00030136,120]
[370019619,1751837049778,460.0,0.00030136,120]
[370019620,1751837051583,460.0,0.00030136,120]
[370019621,1751837053736,505.01,0.00030136,120]